[Event "Masters 2023"]
[Site "Lusail, Qatar"]
[Date "2023.10.20"]
[Round "9"]
[White "Abdusattorov, Nodirbek"]
[Black "Erigaisi, Arjun"]
[Result "1-0"]
[WhiteElo "2716"]
[BlackElo "2712"]
[ECO "D31"]
[EventDate "2023.??.??"]
[Annotator "rafael"]
[PlyCount "97"]
[Beauty "7083474824276"]
[EventType "team-tourn"]
[EventCountry "QAT"]
[TimeControl "5400+30"]

1.c4 e6 2.Nc3 d5 3.d4 c6 4.e4 {This variation is known as the \"Marshall Gambit.\" This is the only case of a player who has two excellent gambits named after him, one with White and one with Black.} 4...dxe4 5.Nxe4 Bb4+ 6.Bd2 {The most critical move.} ( 6.Nc3 {is not very dangerous after} 6...e5 $1 {[%c_effect e5;square;e5;type;GreatFind;persistent;true]} ) 6...Qxd4 7.Bxb4 Qxe4+ 8.Be2 ( 8.Ne2 {also has tons of theory.} ) 8...Na6 9.Bd6 ( 9.Ba5 {This move was played against Erigaisi in 2023. This information is important to understand the story behind this game, as Abdusattorov expected this opening and did an excellent job with his opening preparation.} 9...b6 10.Qd6 $1 {[%c_effect d6;square;d6;type;GreatFind;persistent;true]} 10...e5 ( 10...Bd7 {is a good alternative.} ) 11.Bc3 Ne7 12.Qxe5 Qxe5 13.Bxe5 f6 14.Bc3 Nc5 15.O-O-O Kf7 {with an equal position in Wei-Erigaisi, Dubai (rapid) 2023.} ) 9...Qxg2 10.Bf3 {This move had already been played by Abdusattorov before.} ( 10.Qd2 {is the most popular choice. I prepared this move before facing GM Shulman in the 2007 World Cup. My conclusion at the time was that White was better, but computers have advanced a lot since then.} 10...Nf6 ( 10...e5 {is an important alternative.} ) 11.Bf3 Qg6 12.O-O-O e5 13.Bxe5 Be6 $1 {[%c_effect e6;square;e6;type;GreatFind;persistent;true] Black's position is acceptable. An important game continued:} ( 13...O-O $6 {[%c_effect g8;square;g8;type;Inaccuracy;persistent;true] was the move chosen by my opponent.} 14.Ne2 Qf5 {Here I missed a big chance.} 15.Bd6 $2 {[%c_effect d6;square;d6;type;Mistake;persistent;true]} ( 15.Qe3 $1 {[%c_effect e3;square;e3;type;GreatFind;persistent;true] gives White a winning advantage, according to modern computers.} ) 15...Rd8 {with equality in Leitao-Shulman, FIDE World Cup Khanty-Mansiysk 2007.} ) 14.Ne2 Qf5 15.Bf4 Qc5 16.Nc3 Qxc4 17.Be2 Qb4 18.Bxa6 bxa6 19.Bd6 Qb7 {with chances for both sides in a complicated position: Yoo-Burke, Saint Louis 2022.} ) 10...Qg5 $1 {[%c_effect g5;square;g5;type;GreatFind;persistent;true] The most accurate retreat. The difference is that on g5, the queen can go to a5 in some lines.} ( 10...Qg6 {was the move played against Abdusattorov in a 2021 blitz game.} 11.Ne2 Nf6 $2 {[%c_effect f6;square;f6;type;Mistake;persistent;true]} ( 11...Ne7 {is better.} ) 12.Rg1 {White already has a decisive advantage: Abdusattorov-Smirnov, Chess.com (blitz) 2021.} ) 11.Ne2 Ne7 12.Ng3 {The knight is ready to go to the strong e4-square.} 12...e5 $1 {[%c_effect e5;square;e5;type;GreatFind;persistent;true] An excellent novelty and the first choice of the computer. Both players are well prepared, but now Abdusattorov plays a move that his opponent was probably not expecting.} ( 12...Qa5+ {was tried in Gandrud-Nezad, Gibraltar Masters 2014. Now White can achieve a much better position after} 13.b4 $1 {[%c_effect b4;square;b4;type;GreatFind;persistent;true]} 13...Nxb4 14.O-O ) 13.Qb3 $1 {[%c_effect b3;square;b3;type;GreatFind;persistent;true]} ( 13.Ne4 {Erigaisi probably expected this natural move. Black is fine after} 13...Qf4 ) 13...O-O $6 {[%c_effect g8;square;g8;type;Inaccuracy;persistent;true] The Indian GM thought a lot before playing this move. It's impossible to navigate the complications without a prepared analysis.} ( 13...Ng6 {is the computer's favorite move. Obviously, Abdusattorov has a lot of analysis here.} ) 14.h4 Qf6 15.Ne4 Qe6 16.O-O-O {White has a very dangerous initiative, but the opening preparation goes further.} 16...Re8 17.Rhg1 Nf5 18.Bh5 $1 {[%c_effect h5;square;h5;type;GreatFind;persistent;true] Abdusattorov was still playing very quickly. This very strong move is the computer suggestion. Clearly, Erigaisi was caught in a prepared line, and his situation is now very difficult. White attacks the f7-square and threatens 19.Ng5. Another idea of this move is to force ...h6 or ...g6, cutting off the queen's path to the h6-square.} ( 18.Bg4 $2 {[%c_effect g4;square;g4;type;Mistake;persistent;true] is premature. Black is better after} 18...Qh6+ 19.Kb1 Nd4 ) 18...Nd4 $2 {[%c_effect d4;square;d4;type;Mistake;persistent;true] Black's position becomes very dangerous after this natural move.} ( 18...g6 19.Bg4 $1 {[%c_effect g4;square;g4;type;GreatFind;persistent;true]} ) ( 18...h6 19.Bg4 $1 {[%c_effect g4;square;g4;type;GreatFind;persistent;true]} ) ( 18...Qh6+ $1 {[%c_effect h6;square;h6;type;GreatFind;persistent;true] is the right way:} 19.Kb1 Nxd6 20.Rxd6 Qf4 21.Nf6+ Kf8 22.Nxe8 Kxe8 {This chaotic position is better for White after the prophylactic} 23.Ka1 $1 {[%c_effect a1;square;a1;type;GreatFind;persistent;true]} ) 19.Qd3 g6 {White had a big time advantage at this point.} 20.f4 $1 {[%c_effect f4;square;f4;type;GreatFind;persistent;true] Finally, a move that was played after some thought.} 20...c5 $1 {[%c_effect c5;square;c5;type;GreatFind;persistent;true] The best chance. I am amazed at Erigaisi's enormous skill in finding resources to complicate a difficult position with a huge disadvantage on the clock.} 21.fxe5 ( 21.Bxe5 $2 {[%c_effect e5;square;e5;type;Mistake;persistent;true] turns the game around. A beautiful finish is possible:} 21...Nb4 22.Qf1 Nxa2+ 23.Kb1 Nb4 24.Nf6+ Qxf6 25.Bxf6 Bf5+ 26.Kc1 Nb3# ) 21...Nb4 22.Qf1 $1 {[%c_effect f1;square;f1;type;GreatFind;persistent;true] The only square.} 22...Qf5 ( 22...Nxa2+ {is not enough:} 23.Kb1 Qf5 $1 {[%c_effect f5;square;f5;type;GreatFind;persistent;true]} 24.Rxd4 $1 {[%c_effect d4;square;d4;type;GreatFind;persistent;true]} 24...cxd4 25.Bf3 {The knight is trapped and White is winning.} ) 23.Rxd4 $1 {[%c_effect d4;square;d4;type;GreatFind;persistent;true]} 23...cxd4 24.Nf6+ Kh8 25.Bxb4 $1 {[%c_effect b4;square;b4;type;GreatFind;persistent;true]} ( 25.Qxf5 {leads only to equality after} 25...Bxf5 26.Bxb4 gxh5 27.Nxe8 Rxe8 ) 25...Rxe5 26.Bd1 $1 {[%c_effect d1;square;d1;type;GreatFind;persistent;true] After all the complications, the situation finally became a little clearer. White has a great advantage since the two pieces are stronger than the rook—especially the powerful dark-squared bishop.} 26...Be6 27.Bd6 Bxc4 $5 {[%c_effect c4;square;c4;type;Interesting;persistent;true] An interesting tactical try. White replies with a mistake.} 28.Ng4 $2 {[%c_effect g4;square;g4;type;Mistake;persistent;true] After playing the opening and middlegame with magnificent precision, Abdusattorov finally makes a mistake and loses most of his advantage.} ( 28.Qxc4 $2 {[%c_effect c4;square;c4;type;Mistake;persistent;true] doesn't work because the queen is pinned after} 28...Rc8 ) ( 28.Bxe5 $1 {[%c_effect e5;square;e5;type;GreatFind;persistent;true] is the right move, leading to a winning position.} 28...Bxf1 ( 28...Qxe5 29.Ng4 $1 {[%c_effect g4;square;g4;type;GreatFind;persistent;true] White keeps the extra piece, which is much stronger than the three pawns.} ) ( 28...Qxf1 29.Rxf1 Bxf1 30.Bf3 {The position is winning for White, as Black's pawns are going to fall.} ) 29.Ng4+ Qxe5 ( 29...Kg8 30.Nh6+ {wins easily.} ) 30.Nxe5 Rc8+ 31.Kd2 Bc4 32.Nxc4 Rxc4 33.Bb3 Rc7 34.Rg4 {The d4-pawn falls and White wins, although I don't believe that converting this position over the board is as easy as the computer says it should be.} ) 28...Qxf1 ( 28...Bxf1 $2 {[%c_effect f1;square;f1;type;Mistake;persistent;true]} 29.Bxe5+ Qxe5 30.Nxe5 {transposes to a variation analyzed in the previous move.} ) 29.Bxe5+ Kg8 30.Rxf1 Bxf1 31.Nf6+ Kg7 {The endgame remains complicated, but now Black has good drawing chances.} 32.Kd2 ( 32.Bf3 Rc8+ 33.Kd2 b6 {surprisingly, White is not able to create dangerous threats even with such great pieces.} ) 32...Bg2 33.b4 h6 34.Bb3 Kf8 35.Bxd4 Ke7 ( 35...b6 {is a bit more accurate.} ) 36.Ke3 ( 36.Ng4 $1 {[%c_effect g4;square;g4;type;GreatFind;persistent;true] creates good practical chances. Black needs to find} 36...Kf8 $1 {[%c_effect f8;square;f8;type;GreatFind;persistent;true] The point is} ( 36...h5 $2 {[%c_effect h5;square;h5;type;Mistake;persistent;true]} 37.Bc5+ {followed by 38.Ne5, with a winning advantage.} ) 37.Nxh6 Rd8 38.Ke3 Bd5 $1 {[%c_effect d5;square;d5;type;GreatFind;persistent;true] with equality.} ) 36...b6 37.Ng4 Bh3 38.Kf4 ( 38.Bf6+ {leads to perpetual check after} 38...Kd6 39.Be5+ Ke7 ) 38...g5+ ( 38...Bxg4 {is also possible:} 39.Kxg4 Rd8 40.Be3 f6 {Black is not at risk of losing anymore.} ) 39.hxg5 hxg5+ 40.Kg3 Bxg4 41.Kxg4 Rd8 42.Ba1 Rd3 43.Kxg5 a5 44.bxa5 bxa5 {Material is greatly reduced, and a draw seems inevitable.} 45.Bc4 Rd2 46.Kf4 a4 47.Bc3 Rh2 48.Kf5 Rh4 $4 {[%c_effect h4;square;h4;type;Blunder;persistent;true] It's a pity that such a well-played game ends with a blunder.} ( 48...Rh5+ {with an easy draw.} ) 49.Bf6+ 1-0

[Event "European Team Chess Championships 2023"]
[Site "Budva, Montenegro"]
[Date "2023.11.15"]
[Round "5"]
[White "Tsolakidou, Stavroula"]
[Black "Buksa, Nataliya"]
[Result "1-0"]
[WhiteElo "2389"]
[BlackElo "2377"]
[ECO "B33"]
[EventDate "2023.??.??"]
[Annotator "rafael"]
[PlyCount "71"]
[Beauty "7976831954512"]
[EventType "team-tourn"]
[EventCountry "YUG"]
[TimeControl "40/5400+30:1800+30"]

{[%evp 0,71,17,10,47,41,44,15,15,15,31,31,30,30,22,28,28,28,28,20,52,35,26,24,46,24,18,20,55,46,57,22,47,40,26,26,54,57,57,48,54,28,51,51,64,-9,-22,-30,0,0,148,188,161,189,218,220,210,217,227,227,227,229,228,228,367,382,374,376,386,374,472,480,29995,29996]} 
1.e4 c5 2.Nf3 Nc6 3.d4 cxd4 4.Nxd4 Nf6 5.Nc3 e5 6.Ndb5 d6 7.Nd5 {A move that became popular after being used by Caruana in the match against Carlsen, in 2018. It leads to an unbalanced pawn structure and dynamic positions.} 7...Nxd5 8.exd5 Ne7 {Currently 8...Nb8 is more popular, but the move played in the game has been chosen several times by Carlsen.} ( 8...Nb8 ) 9.c4 Ng6 10.Qa4 Bd7 11.Qb4 {This is all well-established theory. Now, Black has a choice.} 11...Bf5 ( 11...Qb8 {is played more often. The game can continue:} 12.h4 h5 13.Be3 a6 14.Nc3 Be7 15.Na4 $1 {[%c_effect a4;square;a4;type;GreatFind;persistent;true] with better chances for White, if you know what to do later.} ( 15.g3 {is not accurate:} 15...O-O 16.Be2 b5 {Black had good counterplay in Karjakin-Carlsen, Norway Chess Stavanger 2021.} ) ) 12.Qa4 Bd7 13.Qb4 Bf5 14.h4 $1 {[%c_effect h4;square;h4;type;GreatFind;persistent;true] Of course, White is not interested in a draw so early, especially in a team tournament.} 14...h5 {Black avoids h4-h5.} 15.Bg5 Qb8 16.Be2 ( 16.Qa4 $5 {[%c_effect a4;square;a4;type;Interesting;persistent;true] was tried by Caruana. When preparing openings, a good rule of thumb is: \"If Caruana played it, I should play it too.\"} 16...Bd7 17.Qc2 Bxb5 18.cxb5 Be7 19.Bd3 {with some initiative for White in Caruana-Carlsen, Grenke Chess Classic 2019.} ) 16...a6 17.Nc3 Qc7 18.g3 Be7 19.Be3 e4 $1 {[%c_effect e4;square;e4;type;GreatFind;persistent;true] Freeing the e5-square for the knight. I think White should try to improve at this point.} 20.O-O ( 20.Qb6 {gives nothing:} 20...Qd7 21.c5 dxc5 22.Bxc5 O-O {with a good position for Black.} ) ( 20.Qa4+ {is critical and better than the move played in the game.} 20...Bd7 ( 20...Kf8 {is possible as well, but not desirable.} ) 21.Qd1 O-O 22.Nxe4 Rfe8 {Black has compensation, but White can study this: Pranesh-Lagunow, World-chT Rapid Dusseldorf 2023.} ) 20...O-O ( 20...Ne5 {is natural, but White can fight for the advantage with the typical} 21.Qa4+ $1 {[%c_effect a4;square;a4;type;GreatFind;persistent;true]} 21...Bd7 22.Qd1 ) 21.Bxh5 Ne5 {All of this has already been played before in a very important elite game, but I have the feeling (judging by the time spent) that the players didn't remember this game well.} 22.Bd4 {A new move.} ( 22.Be2 Qd7 {Black has excellent compensation and won a great game in Karjakin-Carlsen, Gashimov Memorial Shamkir 2019.} ) 22...Nd3 $5 {[%c_effect d3;square;d3;type;Interesting;persistent;true] Black has so many interesting options that it's hard to choose just one. The move played is certainly very interesting.} ( 22...Nxc4 $2 {[%c_effect c4;square;c4;type;Mistake;persistent;true] Taking the c4-pawn is bad, in both versions.} 23.Rac1 {with an unpleasant pin.} ) ( 22...Qxc4 $6 {[%c_effect c4;square;c4;type;Inaccuracy;persistent;true]} 23.Qxc4 Nxc4 24.Rfe1 {with the better endgame for White.} ) ( 22...Nf3+ $2 {[%c_effect f3;square;f3;type;Mistake;persistent;true] This is premature, although we will see this idea in a better version later on.} 23.Bxf3 exf3 24.Rfe1 $1 {[%c_effect e1;square;e1;type;GreatFind;persistent;true] Followed by Re3. Black does not have time to bring the queen to h3.} ) ( 22...Rac8 {is natural, reinforcing the pressure on c4.} 23.Bxe5 dxe5 24.Qb3 Qxc4 ( 24...Bc5 {is also possible.} ) 25.Qxb7 Qc5 {with a balanced position.} ) ( 22...Bf6 {is solid and gives good compensation for the pawn after} 23.Be2 Rac8 ) ( 22...Bg6 $1 {[%c_effect g6;square;g6;type;GreatFind;persistent;true] This creative move is my favorite. It's a very subtle choice.} 23.Bxg6 ( 23.Be2 Nf3+ $1 {[%c_effect f3;square;f3;type;GreatFind;persistent;true]} 24.Bxf3 exf3 {This is a much better version for Black, since the queen is coming quickly to the kingside after ...Qd7.} ) 23...Nf3+ $1 {[%c_effect f3;square;f3;type;GreatFind;persistent;true]} 24.Kg2 fxg6 25.Be3 Qd7 {with excellent attacking chances on the light squares.} ) 23.Qb3 Bxh4 $5 {[%c_effect h4;square;h4;type;Interesting;persistent;true] A good piece sacrifice.} ( 23...Rac8 {is possible. Now, White must find the precise} 24.Nd1 $1 {[%c_effect d1;square;d1;type;GreatFind;persistent;true]} 24...Bh3 ( 24...Qxc4 $2 {[%c_effect c4;square;c4;type;Mistake;persistent;true] loses material after} 25.Qxc4 Rxc4 26.Ne3 Rxd4 27.Nxf5 ) 25.Ne3 Bxf1 26.Rxf1 {with good compensation for the exchange.} ) 24.gxh4 {The position becomes extremely complicated. White is not forced to accept the gift on h4.} ( 24.Be2 {is natural, with complicated play after} 24...Qe7 ) ( 24.Nxe4 $5 {[%c_effect e4;square;e4;type;Interesting;persistent;true] An interesting hidden resource.} 24...Bxe4 25.Be2 {White regains the piece.} 25...Nf4 ( 25...Nc5 {is also good enough for equality after} 26.Bxc5 dxc5 27.gxh4 Qe7 28.Qg3 Bxd5 $1 {[%c_effect d5;square;d5;type;GreatFind;persistent;true]} 29.cxd5 Qxe2 ) 26.gxf4 Qd7 {with chances for both sides.} ) ( 24.f3 $5 {[%c_effect f3;square;f3;type;Interesting;persistent;true] This likely poses the most difficult problems for Black.} 24...e3 $1 {[%c_effect e3;square;e3;type;GreatFind;persistent;true] The best option.} ( 24...Bxg3 $2 {[%c_effect g3;square;g3;type;Mistake;persistent;true]} 25.fxe4 {is much better for White.} ) 25.gxh4 Qe7 $1 {[%c_effect e7;square;e7;type;GreatFind;persistent;true] The game peters out to a draw by perpetual check after} 26.Ne4 Bxe4 27.fxe4 Qxh4 28.Qxd3 Qg3+ 29.Kh1 Qh3+ ) 24...Qe7 {This is the point of the sacrifice. The pawn on h4 will be captured, and the queen, knight, and bishop create dangerous threats against White's king.} 25.Ne2 $1 {[%c_effect e2;square;e2;type;GreatFind;persistent;true] The knight must come to the king's rescue.} 25...Qxh4 26.Ng3 {We arrive at the critical moment of the game.} 26...Nf4 $2 {[%c_effect f4;square;f4;type;Mistake;persistent;true] This move meets a beautiful refutation. Black has several alternatives.} ( 26...Qh3 $5 {[%c_effect h3;square;h3;type;Interesting;persistent;true]} 27.Rfe1 ( 27.Nxf5 Qxh5 28.Ng3 Qh3 29.Nxe4 f5 $1 {[%c_effect f5;square;f5;type;GreatFind;persistent;true] with good attacking chances in this chaotic position.} ) 27...Nf4 28.Bf3 $1 {[%c_effect f3;square;f3;type;GreatFind;persistent;true] The only way to defend mate.} 28...exf3 29.Qxf3 g5 {with equal play.} ) ( 26...Rae8 {Black can simply bring the rook to the game. White must do the same, and the position requires a lot of analysis to be understood. The computer thinks it's equal.} 27.Rfe1 $1 {[%c_effect e1;square;e1;type;GreatFind;persistent;true]} ) ( 26...Bd7 {This looks less precise than the other bishop move, although it's also possible.} ) ( 26...Bh7 $1 {[%c_effect h7;square;h7;type;GreatFind;persistent;true] This strikes me as the most human choice. The bishop is not attacked anymore, and the path is cleared for a pawn push with ...f5.} 27.Rfe1 ( 27.Be2 Rae8 $1 {[%c_effect e8;square;e8;type;GreatFind;persistent;true] with the initiative.} ( 27...Nf4 {is not so good after} 28.Be3 ) ) 27...Nf4 28.Be2 Nh3+ 29.Kg2 Nf4+ {with perpetual check.} ) 27.Nxf5 $1 {[%c_effect f5;square;f5;type;GreatFind;persistent;true]} 27...Qxh5 28.Qg3 $3 {[%c_effect g3;square;g3;type;Brilliant;persistent;true][%c_arrow b3g3;keyPressed;none;from;b3;opacity;0.8;to;g3;persistent;false] This brilliant move certainly was missed by Buksa. White is winning.} 28...Ne2+ 29.Kg2 Nxg3 30.Ne7+ Kh7 31.fxg3 {The idea becomes clear: Black cannot prevent 32.Rh1.} 31...Kh6 ( 31...Qe2+ {doesn't help:} 32.Rf2 ) 32.Rh1 Qxh1+ 33.Rxh1+ Kg5 34.Bxg7 {White is ahead in material, and the attack continues.} 34...Rfe8 35.Rf1 $1 {[%c_effect f1;square;f1;type;GreatFind;persistent;true] A nice final touch.} 35...e3 ( 35...Rxe7 36.Bf6+ ) 36.Bf6+ ( 36.Bf6+ Kh5 37.Rh1+ Kg4 38.Rh4# ) 1-0